fUSD/lending_fUSD_20240301
["ID","MTS","AMOUNT","RATE_DAILY","PERIOD"]
[315961652,1709305841932,-194.55,0.0002029,2]
[315961654,1709305841942,-153.93,0.00020298,2]
[315961656,1709305841951,-1310.4,0.00020351,2]
[315961658,1709305841961,-204.15,0.00020405,2]
[315961661,1709305841971,-157.28,0.00020431,2]
[315961662,1709305841982,-1078.02,0.00020435,2]
[315961665,1709305841991,-123774.01208367,0.00020441,2]
[315961674,1709305842073,-312.16445397,0.00020441,2]
[315961679,1709305842106,-399.13216622,0.00020441,2]
[315961711,1709305842395,-14448.07234836,0.00020441,2]
[315961713,1709305842408,-8489.79513644,0.00020441,2]
[315961717,1709305842438,-6023.82381134,0.00020441,2]
[315961719,1709305842448,-167.85433785,0.00020451,2]
[315961721,1709305842459,-1143.7797,0.00020548,2]
[315961723,1709305842469,-1323.2777,0.00020548,2]
[315961726,1709305842482,-3438.87958067,0.0002055,2]
[315961728,1709305842495,-21752.54131244,0.0002055,2]
[315961735,1709305842551,-44016.18022716,0.0002055,2]
[315961737,1709305842562,-311.0,0.00020551,2]
[315961739,1709305842573,-888.0,0.00020551,2]
[315961741,1709305842584,-422.77326782,0.00020636,2]
[315961743,1709305842595,-157.28,0.00020637,2]
[315961745,1709305842606,-192.40927636,0.00020646,2]
[315961747,1709305842617,-426.18775558,0.00020646,2]
[315961749,1709305842627,-157.64932231,0.00020647,2]
[315961751,1709305842638,-284.60851747,0.00020647,2]
[315961754,1709305842653,-15054.52569486,0.00020647,2]
[315961756,1709305842666,-219.75786608,0.000207,2]
[315961759,1709305842678,-203.0,0.00020753,2]
[315961761,1709305842690,-7983.69,0.00020758,2]
[315961763,1709305842703,-355.28,0.00020828,2]
[315961765,1709305842714,-153.93,0.00020846,2]
[315961767,1709305842725,-161.57833346,0.00021026,2]
[315961769,1709305842736,-204.15,0.00021079,2]
[315961771,1709305842747,-1431.18,0.00021096,2]
[315961774,1709305842758,-1398.8138,0.0002118,2]
[315961776,1709305842769,-643.33870642,0.0002127,2]
[315961778,1709305842780,-157.28,0.0002127,2]
[315961780,1709305842791,-157.28,0.0002127,2]
[315961782,1709305842802,-157.28,0.0002127,2]
[315961784,1709305842813,-157.28,0.0002127,2]
[315961786,1709305842823,-4809.79844226,0.00021277,2]
[315961788,1709305842833,-156.49253061,0.00021278,2]
[315961790,1709305842844,-1714.86406984,0.00021278,2]
[315961793,1709305842854,-216.45836637,0.00021278,2]
[315961795,1709305842864,-450.0,0.00021278,2]
[315961797,1709305842874,-204.59159147,0.00021278,2]
[315961799,1709305842884,-500.0,0.00021279,2]
[315961801,1709305842894,-515.78580482,0.00021279,2]
[315961803,1709305842905,-500.0,0.00021279,2]
[315961805,1709305842915,-606.18228367,0.00021279,2]
[315961807,1709305842926,-221.87632346,0.00021279,2]
[315961809,1709305842937,-873405.39698824,0.0002128,2]
[315961812,1709305842947,-1078.02,0.00021363,2]
[315961814,1709305842958,-185.8685475,0.00021381,2]
[315961816,1709305842970,-153.93,0.00021394,2]
[315961818,1709305842983,-557.79536056,0.00021457,6]
[315961820,1709305842993,-557.79536056,0.00021469,6]
[315961822,1709305843003,-172.17,0.00021475,2]
[315961825,1709305843014,-557.79536056,0.0002148,6]
[315961827,1709305843024,-557.79536056,0.00021484,6]
[315961829,1709305843034,-155.0,0.000215,2]
[315961831,1709305843045,-20566.9784,0.000215,2]
[315961833,1709305843055,-350.83789358,0.00021586,2]
[315961835,1709305843064,-1227.0293,0.000216,2]
[315961838,1709305843078,-1000.0,0.00021617,2]
[315961840,1709305843088,-170.0,0.00021621,2]
[315961842,1709305843098,-157.28,0.00021707,2]
[315961844,1709305843109,-500.0,0.00021717,2]
[315961846,1709305843120,-4771.5197,0.00021717,2]
[315961848,1709305843134,-245000.0,0.00021717,2]
[315961850,1709305843145,-372.3388,0.00021717,2]
[315961852,1709305843154,-1231.0,0.00021726,2]
[315961855,1709305843165,-1130.218,0.00021726,2]
[315961857,1709305843174,-217.0,0.00021726,2]
[315961860,1709305843185,-276.455,0.00021726,2]
[315961863,1709305843195,-176.798,0.00021726,2]
[315961866,1709305843205,-1455.0,0.00021726,2]
[315961869,1709305843215,-338.0,0.00021726,2]
[315961872,1709305843225,-2191.447,0.00021726,2]
[315961874,1709305843239,-298.0,0.00021726,2]
[315961876,1709305843249,-204.15,0.00021753,2]
[315961878,1709305843259,-1039.57930007,0.00021753,2]
[315961880,1709305843269,-910.0,0.0002179,2]
[315961883,1709305843279,-250.0,0.000218,2]
[315961886,1709305843289,-8325.0,0.00021807,2]
[315961889,1709305843299,-6210.444,0.00021807,2]
[315961890,1709305843309,-2299.0,0.00021807,2]
[315961893,1709305843319,-157.28,0.00021807,2]
[315961895,1709305843332,-9520.9881,0.00021817,2]
[315961897,1709305843348,-66027.5579,0.00021817,2]
[315961899,1709305843358,-47097.0724,0.00021817,2]
[315961901,1709305843368,-161.57833346,0.00021817,2]
[315961903,1709305843378,-6420.54879271,0.000219,2]
[315961905,1709305843395,-4264.0,0.000219,2]
[315961908,1709305843405,-297.57420978,0.000219,2]
[315961910,1709305843415,-643.33870642,0.00021907,2]
[315961912,1709305843425,-220.5151884,0.00021914,2]
[315961914,1709305843435,-220.98368194,0.00021914,2]
[315961916,1709305843446,-597.70264235,0.00021917,2]
[315961918,1709305843456,-500.45822545,0.00021917,2]
[315961920,1709305843470,-504.33635645,0.00021917,2]
[315961922,1709305843483,-521.5693263,0.00021917,2]
[315961924,1709305843494,-2000.0,0.00021917,2]
[315961926,1709305843505,-633.53394754,0.00021917,2]
[315961929,1709305843519,-500.0,0.00021917,2]
[315961931,1709305843529,-500.0,0.00021917,2]
[315961933,1709305843541,-500.0,0.00021917,2]
[315961935,1709305843550,-500.0,0.00021917,2]
[315961937,1709305843561,-500.0,0.00021917,2]
[315961939,1709305843571,-428.42408604,0.00021917,2]
[315961941,1709305843581,-500.0,0.00021917,2]
[315961943,1709305843591,-500.0,0.00021917,2]
[315961945,1709305843601,-500.0,0.00021917,2]
[315961947,1709305843612,-500.0,0.00021917,2]
[315961949,1709305843622,-500.0,0.00021917,2]
[315961952,1709305843633,-500.0,0.00021917,2]
[315961955,1709305843654,-505.9666974,0.00021917,2]
[315961957,1709305843665,-608.46108668,0.00021917,2]
[315961959,1709305843676,-504.4091115,0.00021917,2]
[315961961,1709305843687,-500.0,0.00021917,2]
[315961963,1709305843697,-500.0,0.00021917,2]
[315961965,1709305843708,-500.0,0.00021917,2]
[315961967,1709305843719,-500.0,0.00021917,2]
[315961970,1709305843729,-507.6349475,0.00021917,2]
[315961972,1709305843742,-500.0,0.00021917,2]
[315961973,1709305843753,-506.32374571,0.00021917,2]
[315961974,1709305843764,-519.71290693,0.00021917,2]
[315961975,1709305843775,-498.60269622,0.00021917,2]
[315961976,1709305843787,-500.0,0.00021917,2]
[315961977,1709305843798,-500.0,0.00021917,2]
[315961978,1709305843809,-500.0,0.00021917,2]
[315961979,1709305843820,-500.0,0.00021917,2]
[315961980,1709305843831,-500.0,0.00021917,2]
[315961982,1709305843842,-500.0,0.00021917,2]
[315961984,1709305843853,-503.87041367,0.00021917,2]
[315961987,1709305843863,-500.0,0.00021917,2]
[315961989,1709305843874,-516.07427586,0.00021917,2]
[315961991,1709305843884,-500.0,0.00021917,2]
[315961993,1709305843895,-500.0,0.00021917,2]
[315961996,1709305843905,-509.68412949,0.00021917,2]
[315961998,1709305843916,-500.0,0.00021917,2]
[315962000,1709305843926,-500.0,0.00021917,2]
[315962002,1709305843937,-500.0,0.00021917,2]
[315962005,1709305843948,-501.5503419,0.00021917,2]
[315962007,1709305843958,-500.0,0.00021917,2]
[315962009,1709305843968,-507.820751,0.00021917,2]
[315962011,1709305843978,-504.08536919,0.00021917,2]
[315962013,1709305843992,-500.0,0.00021917,2]
[315962015,1709305844003,-500.0,0.00021917,2]
[315962017,1709305844013,-500.0,0.00021917,2]
[315962019,1709305844024,-500.0,0.00021917,2]
[315962021,1709305844035,-500.0,0.00021917,2]
[315962023,1709305844046,-514.40804806,0.00021917,2]
[315962026,1709305844057,-500.0,0.00021917,2]
[315962028,1709305844068,-500.0,0.00021917,2]
[315962030,1709305844079,-500.0,0.00021917,2]
[315962032,1709305844089,-500.0,0.00021917,2]
[315962034,1709305844100,-500.0,0.00021917,2]
[315962036,1709305844110,-500.0,0.00021917,2]
[315962038,1709305844121,-500.0,0.00021917,2]
[315962040,1709305844132,-500.0,0.00021917,2]
[315962043,1709305844142,-500.0,0.00021917,2]
[315962045,1709305844153,-500.0,0.00021917,2]
[315962047,1709305844163,-500.0,0.00021917,2]
[315962049,1709305844173,-500.0,0.00021917,2]
[315962051,1709305844183,-500.0,0.00021917,2]
[315962053,1709305844194,-502.14292823,0.00021917,2]
[315962055,1709305844205,-500.0,0.00021917,2]
[315962057,1709305844216,-500.0,0.00021917,2]
[315962059,1709305844226,-500.0,0.00021917,2]
[315962061,1709305844241,-509.71481683,0.00021917,2]
[315962064,1709305844252,-500.0,0.00021917,2]
[315962066,1709305844262,-500.0,0.00021917,2]
[315962068,1709305844273,-500.0,0.00021917,2]
[315962070,1709305844283,-500.0,0.00021917,2]
[315962072,1709305844293,-510.61805633,0.00021917,2]
[315962074,1709305844304,-500.0,0.00021917,2]
[315962077,1709305844315,-510.5598781,0.00021917,2]
[315962079,1709305844326,-500.0,0.00021917,2]
[315962081,1709305844340,-906.74,0.00021917,2]
[315962083,1709305844351,-500.0,0.00021917,2]
[315962085,1709305844365,-500.0,0.00021917,2]
[315962087,1709305844374,-500.0,0.00021917,2]
[315962089,1709305844385,-500.0,0.00021917,2]
[315962091,1709305844394,-500.0,0.00021917,2]
[315962093,1709305844405,-500.0,0.00021917,2]
[315962095,1709305844415,-500.0,0.00021917,2]
[315962098,1709305844425,-246.77511941,0.00021917,2]
[315962100,1709305844436,-500.0,0.00021917,2]
[315962102,1709305844446,-500.0,0.00021917,2]
[315962104,1709305844456,-500.0,0.00021917,2]
[315962106,1709305844466,-500.0,0.00021917,2]
[315962108,1709305844476,-500.0,0.00021917,2]
[315962110,1709305844489,-511.28043239,0.00021917,2]
[315962112,1709305844500,-500.0,0.00021917,2]
[315962114,1709305844510,-500.0,0.00021917,2]
[315962116,1709305844521,-500.0,0.00021917,2]
[315962119,1709305844532,-500.0,0.00021917,2]
[315962121,1709305844542,-500.0,0.00021917,2]
[315962123,1709305844552,-500.0,0.00021917,2]
[315962125,1709305844562,-500.0,0.00021917,2]
[315962127,1709305844572,-500.0,0.00021917,2]
[315962129,1709305844582,-500.0,0.00021917,2]
[315962131,1709305844591,-500.0,0.00021917,2]
[315962133,1709305844601,-507.46736707,0.00021917,2]
[315962135,1709305844611,-500.0,0.00021917,2]
[315962137,1709305844621,-500.0,0.00021917,2]
[315962139,1709305844631,-500.0,0.00021917,2]
[315962141,1709305844641,-553.47117841,0.00021917,2]
[315962143,1709305844651,-500.0,0.00021917,2]
[315962145,1709305844662,-500.0,0.00021917,2]
[315962148,1709305844673,-500.0,0.00021917,2]
[315962150,1709305844684,-500.0,0.00021917,2]
[315962152,1709305844695,-500.0,0.00021917,2]
[315962154,1709305844709,-500.0,0.00021917,2]
[315962156,1709305844721,-500.0,0.00021917,2]
[315962159,1709305844736,-500.0,0.00021917,2]
[315962161,1709305844747,-500.0,0.00021917,2]
[315962163,1709305844758,-635.51,0.00021917,2]
[315962165,1709305844769,-500.0,0.00021917,2]
[315962167,1709305844780,-500.0,0.00021917,2]
[315962169,1709305844791,-500.0,0.00021917,2]
[315962172,1709305844802,-500.0,0.00021917,2]
[315962174,1709305844813,-500.0,0.00021917,2]
[315962176,1709305844824,-500.0,0.00021917,2]
[315962178,1709305844835,-509.90974669,0.00021917,2]
[315962180,1709305844845,-500.0,0.00021917,2]
[315962182,1709305844856,-500.0,0.00021917,2]
[315962184,1709305844866,-428.6243988,0.00021917,2]
[315962186,1709305844876,-500.0,0.00021917,2]
[315962189,1709305844887,-500.0,0.00021917,2]
[315962191,1709305844900,-509.34620085,0.00021917,2]
[315962193,1709305844910,-500.0,0.00021917,2]
[315962195,1709305844920,-500.0,0.00021917,2]
[315962197,1709305844930,-500.0,0.00021917,2]
[315962200,1709305844941,-500.0,0.00021917,2]
[315962202,1709305844951,-500.0,0.00021917,2]
[315962204,1709305844961,-500.0,0.00021917,2]
[315962206,1709305844972,-500.0,0.00021917,2]
[315962208,1709305844983,-500.0,0.00021917,2]
[315962210,1709305844993,-500.0,0.00021917,2]
[315962212,1709305845004,-500.0,0.00021917,2]
[315962214,1709305845014,-500.0,0.00021917,2]
[315962216,1709305845024,-500.0,0.00021917,2]
[315962218,1709305845034,-376.57937412,0.00021917,2]
[315962220,1709305845044,-509.32335791,0.00021917,2]
[315962223,1709305845055,-500.0,0.00021917,2]
[315962225,1709305845065,-500.0,0.00021917,2]
[315962227,1709305845076,-500.0,0.00021917,2]
[315962229,1709305845086,-500.0,0.00021917,2]
[315962231,1709305845097,-500.0,0.00021917,2]
[315962233,1709305845107,-500.0,0.00021917,2]
[315962235,1709305845118,-500.0,0.00021917,2]
[315962238,1709305845129,-414.09396937,0.00021917,2]
[315962240,1709305845138,-500.0,0.00021917,2]
[315962242,1709305845148,-500.0,0.00021917,2]
[315962244,1709305845159,-500.0,0.00021917,2]
[315962246,1709305845169,-500.0,0.00021917,2]
[315962248,1709305845179,-578.25,0.00021917,2]
[315962250,1709305845189,-500.0,0.00021917,2]
[315962252,1709305845199,-500.0,0.00021917,2]
[315962254,1709305845209,-500.0,0.00021917,2]
[315962256,1709305845220,-500.0,0.00021917,2]
[315962258,1709305845230,-645.02,0.00021917,2]
[315962260,1709305845242,-500.0,0.00021917,2]
[315962263,1709305845253,-500.0,0.00021917,2]
[315962265,1709305845264,-500.0,0.00021917,2]
[315962267,1709305845274,-500.0,0.00021917,2]
[315962269,1709305845285,-500.0,0.00021917,2]
[315962303,1709305845297,-500.0,0.00021917,2]
[315962308,1709305845626,-751.68,0.00021917,2]
[315962310,1709305845636,-500.0,0.00021917,2]
[315962312,1709305845646,-500.0,0.00021917,2]
[315962314,1709305845655,-500.0,0.00021917,2]
[315962316,1709305845664,-500.0,0.00021917,2]
[315962318,1709305845673,-500.0,0.00021917,2]
[315962320,1709305845682,-500.0,0.00021917,2]
[315962322,1709305845692,-500.0,0.00021917,2]
[315962324,1709305845701,-500.0,0.00021917,2]
[315962326,1709305845711,-500.0,0.00021917,2]
[315962328,1709305845720,-500.0,0.00021917,2]
[315962330,1709305845729,-500.0,0.00021917,2]
[315962332,1709305845741,-500.0,0.00021917,2]
[315962334,1709305845751,-500.0,0.00021917,2]
[315962336,1709305845760,-500.0,0.00021917,2]
[315962338,1709305845770,-500.0,0.00021917,2]
[315962340,1709305845780,-500.0,0.00021917,2]
[315962342,1709305845790,-500.0,0.00021917,2]
[315962344,1709305845799,-971.26,0.00021917,2]
[315962346,1709305845809,-500.0,0.00021917,2]
[315962348,1709305845819,-165.45193801,0.00021917,2]
[315962350,1709305845828,-919.98,0.00021917,2]
[315962352,1709305845837,-500.0,0.00021917,2]
[315962354,1709305845847,-500.0,0.00021917,2]
[315962356,1709305845856,-500.0,0.00021917,2]
[315962358,1709305845865,-500.0,0.00021917,2]
[315962360,1709305845875,-500.0,0.00021917,2]
[315962362,1709305845884,-500.0,0.00021917,2]
[315962364,1709305845894,-500.0,0.00021917,2]
[315962366,1709305845903,-573.56,0.00021917,2]
[315962368,1709305845913,-500.0,0.00021917,2]
[315962370,1709305845923,-500.0,0.00021917,2]
[315962372,1709305845932,-500.0,0.00021917,2]
[315962374,1709305845942,-500.0,0.00021917,2]
[315962376,1709305845954,-500.0,0.00021917,2]
[315962378,1709305845964,-500.0,0.00021917,2]
[315962380,1709305845974,-500.0,0.00021917,2]
[315962382,1709305845984,-500.0,0.00021917,2]
[315962384,1709305845993,-500.0,0.00021917,2]
[315962386,1709305846003,-500.0,0.00021917,2]
[315962389,1709305846016,-500.0,0.00021917,2]
[315962391,1709305846025,-500.0,0.00021917,2]
[315962392,1709305846035,-500.0,0.00021917,2]
[315962395,1709305846044,-500.0,0.00021917,2]
[315962396,1709305846053,-505.09108794,0.00021917,2]
[315962398,1709305846063,-500.0,0.00021917,2]
[315962400,1709305846072,-500.0,0.00021917,2]
[315962403,1709305846082,-500.0,0.00021917,2]
[315962405,1709305846091,-500.0,0.00021917,2]
[315962407,1709305846100,-500.0,0.00021917,2]
[315962409,1709305846109,-500.0,0.00021917,2]
[315962411,1709305846118,-737.77,0.00021917,2]
[315962414,1709305846127,-500.0,0.00021917,2]
[315962415,1709305846137,-500.0,0.00021917,2]
[315962416,1709305846146,-500.0,0.00021917,2]
[315962417,1709305846155,-500.0,0.00021917,2]
[315962419,1709305846165,-500.0,0.00021917,2]
[315962421,1709305846174,-500.0,0.00021917,2]
[315962423,1709305846183,-500.0,0.00021917,2]
[315962425,1709305846192,-500.0,0.00021917,2]
[315962427,1709305846201,-500.0,0.00021917,2]
[315962429,1709305846210,-641.48335868,0.00021917,2]
[315962432,1709305846219,-500.0,0.00021917,2]
[315962435,1709305846229,-500.0,0.00021917,2]
[315962438,1709305846241,-500.0,0.00021917,2]
[315962441,1709305846250,-500.0,0.00021917,2]
[315962444,1709305846260,-500.0,0.00021917,2]
[315962447,1709305846270,-500.0,0.00021917,2]
[315962450,1709305846279,-500.0,0.00021917,2]
[315962453,1709305846289,-500.0,0.00021917,2]
[315962455,1709305846298,-500.0,0.00021917,2]
[315962458,1709305846309,-782.71,0.00021917,2]
[315962460,1709305846318,-500.0,0.00021917,2]
[315962462,1709305846329,-500.0,0.00021917,2]
[315962464,1709305846339,-500.0,0.00021917,2]
[315962466,1709305846349,-500.0,0.00021917,2]
[315962468,1709305846361,-500.0,0.00021917,2]
[315962470,1709305846370,-742.5,0.00021917,2]
[315962472,1709305846380,-500.0,0.00021917,2]
[315962474,1709305846389,-500.0,0.00021917,2]
[315962476,1709305846399,-500.0,0.00021917,2]
[315962478,1709305846408,-500.0,0.00021917,2]
[315962480,1709305846418,-500.0,0.00021917,2]
[315962482,1709305846427,-500.0,0.00021917,2]
[315962484,1709305846438,-500.0,0.00021917,2]
[315962486,1709305846447,-500.0,0.00021917,2]
[315962488,1709305846457,-500.0,0.00021917,2]
[315962490,1709305846466,-500.0,0.00021917,2]
[315962492,1709305846477,-500.0,0.00021917,2]
[315962494,1709305846486,-500.0,0.00021917,2]
[315962496,1709305846497,-500.0,0.00021917,2]
[315962498,1709305846506,-500.0,0.00021917,2]
[315962500,1709305846516,-402.69348185,0.00021917,2]
[315962502,1709305846527,-516.61,0.00021917,2]
[315962504,1709305846536,-500.0,0.00021917,2]
[315962506,1709305846545,-500.0,0.00021917,2]
[315962508,1709305846555,-500.0,0.00021917,2]
[315962510,1709305846565,-500.0,0.00021917,2]
[315962512,1709305846574,-500.0,0.00021917,2]
[315962514,1709305846583,-500.0,0.00021917,2]
[315962516,1709305846592,-500.0,0.00021917,2]
[315962518,1709305846602,-500.0,0.00021917,2]
[315962520,1709305846611,-500.0,0.00021917,2]
[315962522,1709305846621,-500.0,0.00021917,2]
[315962524,1709305846630,-500.0,0.00021917,2]
[315962526,1709305846640,-500.0,0.00021917,2]
[315962528,1709305846649,-500.0,0.00021917,2]
[315962530,1709305846659,-500.0,0.00021917,2]
[315962532,1709305846668,-500.0,0.00021917,2]
[315962534,1709305846678,-500.0,0.00021917,2]
[315962537,1709305846688,-500.0,0.00021917,2]
[315962539,1709305846697,-707.6,0.00021917,2]
[315962541,1709305846707,-780.2,0.00021917,2]
[315962543,1709305846716,-581.1,0.00021917,2]
[315962545,1709305846726,-500.0,0.00021917,2]
[315962547,1709305846737,-500.0,0.00021917,2]
[315962549,1709305846746,-500.0,0.00021917,2]
[315962551,1709305846756,-500.0,0.00021917,2]
[315962553,1709305846765,-500.0,0.00021917,2]
[315962555,1709305846775,-500.0,0.00021917,2]
[315962557,1709305846785,-500.0,0.00021917,2]
[315962559,1709305846794,-500.0,0.00021917,2]
[315962561,1709305846804,-500.0,0.00021917,2]
[315962563,1709305846813,-500.0,0.00021917,2]
[315962565,1709305846823,-500.0,0.00021917,2]
[315962567,1709305846833,-500.0,0.00021917,2]
[315962569,1709305846843,-504.09,0.00021917,2]
[315962571,1709305846853,-500.0,0.00021917,2]
[315962573,1709305846862,-500.0,0.00021917,2]
[315962575,1709305846872,-500.0,0.00021917,2]
[315962577,1709305846882,-500.0,0.00021917,2]
[315962579,1709305846891,-600.18,0.00021917,2]
[315962581,1709305846901,-500.0,0.00021917,2]
[315962583,1709305846911,-375.64287887,0.00021917,2]
[315962585,1709305846920,-500.0,0.00021917,2]
[315962587,1709305846930,-500.0,0.00021917,2]
[315962589,1709305846939,-546.1,0.00021917,2]
[315962591,1709305846949,-500.0,0.00021917,2]
[315962593,1709305846959,-532.41,0.00021917,2]
[315962595,1709305846969,-500.0,0.00021917,2]
[315962597,1709305846979,-734.54,0.00021917,2]
[315962599,1709305846991,-529.48,0.00021917,2]
[315962601,1709305847000,-500.0,0.00021917,2]
[315962603,1709305847010,-500.0,0.00021917,2]
[315962605,1709305847020,-581.20641296,0.00021917,2]
[315962607,1709305847030,-500.0,0.00021917,2]
[315962609,1709305847041,-500.0,0.00021917,2]
[315962611,1709305847051,-500.0,0.00021917,2]
[315962613,1709305847061,-500.0,0.00021917,2]
[315962615,1709305847071,-500.0,0.00021917,2]
[315962617,1709305847080,-500.0,0.00021917,2]
[315962619,1709305847090,-500.0,0.00021917,2]
[315962621,1709305847099,-639.25,0.00021917,2]
[315962623,1709305847108,-500.0,0.00021917,2]
[315962625,1709305847118,-500.0,0.00021917,2]
[315962627,1709305847127,-584.03,0.00021917,2]
[315962629,1709305847137,-500.0,0.00021917,2]
[315962631,1709305847146,-500.0,0.00021917,2]
[315962633,1709305847155,-500.0,0.00021917,2]
[315962635,1709305847168,-500.0,0.00021917,2]
[315962637,1709305847178,-500.0,0.00021917,2]
[315962639,1709305847188,-550.42,0.00021917,2]
[315962641,1709305847198,-500.0,0.00021917,2]
[315962643,1709305847208,-514.22,0.00021917,2]
[315962645,1709305847221,-500.0,0.00021917,2]
[315962647,1709305847230,-500.0,0.00021917,2]
[315962649,1709305847241,-500.0,0.00021917,2]
[315962652,1709305847250,-500.0,0.00021917,2]
[315962653,1709305847259,-613.29,0.00021917,2]
[315962656,1709305847269,-500.0,0.00021917,2]
[315962657,1709305847279,-500.0,0.00021917,2]
[315962659,1709305847288,-500.0,0.00021917,2]
[315962662,1709305847298,-500.0,0.00021917,2]
[315962664,1709305847308,-500.0,0.00021917,2]
[315962666,1709305847317,-500.0,0.00021917,2]
[315962668,1709305847326,-518.84,0.00021917,2]
[315962669,1709305847337,-500.0,0.00021917,2]
[315962672,1709305847347,-500.0,0.00021917,2]
[315962674,1709305847358,-273.28,0.00021917,2]
[315962676,1709305847368,-500.0,0.00021917,2]
[315962678,1709305847377,-500.0,0.00021917,2]
[315962680,1709305847387,-500.0,0.00021917,2]
[315962682,1709305847396,-500.0,0.00021917,2]
[315962684,1709305847406,-500.0,0.00021917,2]
[315962686,1709305847416,-500.0,0.00021917,2]
[315962688,1709305847425,-562.57777595,0.00021917,2]
[315962690,1709305847436,-500.0,0.00021917,2]
[315962692,1709305847445,-500.0,0.00021917,2]
[315962694,1709305847456,-500.0,0.00021917,2]
[315962696,1709305847465,-500.96592458,0.00021917,2]
[315962698,1709305847474,-607.56,0.00021917,2]
[315962700,1709305847485,-500.0,0.00021917,2]
[315962702,1709305847494,-500.0,0.00021917,2]
[315962704,1709305847505,-500.0,0.00021917,2]
[315962706,1709305847515,-999.79,0.00021917,2]
[315962708,1709305847526,-500.0,0.00021917,2]
[315962710,1709305847535,-500.0,0.00021917,2]
[315962712,1709305847546,-772.36,0.00021917,2]
[315962714,1709305847556,-500.0,0.00021917,2]
[315962716,1709305847567,-500.0,0.00021917,2]
[315962718,1709305847577,-500.0,0.00021917,2]
[315962720,1709305847587,-500.0,0.00021917,2]
[315962722,1709305847597,-500.0,0.00021917,2]
[315962724,1709305847607,-499.94082865,0.00021917,2]
[315962726,1709305847617,-500.0,0.00021917,2]
[315962728,1709305847627,-500.0,0.00021917,2]
[315962730,1709305847636,-500.0,0.00021917,2]
[315962732,1709305847646,-500.0,0.00021917,2]
[315962734,1709305847656,-500.0,0.00021917,2]
[315962736,1709305847665,-500.0,0.00021917,2]
[315962738,1709305847676,-500.0,0.00021917,2]
[315962740,1709305847686,-500.0,0.00021917,2]
[315962742,1709305847696,-500.0,0.00021917,2]
[315962744,1709305847706,-500.0,0.00021917,2]
[315962746,1709305847716,-500.0,0.00021917,2]
[315962748,1709305847726,-500.0,0.00021917,2]
[315962750,1709305847737,-500.0,0.00021917,2]
[315962752,1709305847747,-500.0,0.00021917,2]
[315962754,1709305847757,-500.0,0.00021917,2]
[315962756,1709305847766,-500.0,0.00021917,2]
[315962759,1709305847776,-502.86,0.00021917,2]
[315962761,1709305847786,-500.0,0.00021917,2]
[315962763,1709305847795,-500.0,0.00021917,2]
[315962765,1709305847804,-795.21,0.00021917,2]
[315962767,1709305847813,-500.0,0.00021917,2]
[315962769,1709305847823,-500.0,0.00021917,2]
[315962771,1709305847833,-500.0,0.00021917,2]
[315962773,1709305847842,-1168.03,0.00021917,2]
[315962774,1709305847851,-509.90147591,0.00021917,2]